[Event "Turkish Club Cup 2019"]
[Site "Konya"]
[Date "2019.07.16"]
[Round "1"]
[White "Karakilinc, Ali Kerem"]
[Black "Ince, Eray"]
[Result "0-1"]
[ECO "B01"]
[WhiteElo "1160"]
[BlackElo "1459"]
[Annotator "NA"]
[PlyCount "120"]
[EventDate "2019.07.16"]
[EventType "team-tourn"]
[EventCountry "TUR"]
[SourceTitle "playchess.com"]
[Source "ChessBase"]
[SourceQuality "1"]
[TimeControl "5400+30"]

1. e4 {[%emt 0:00:30]} d5 {[%emt 0:00:30]} 2. exd5 {[%emt 0:00:30]} Qxd5 {[%emt 0:00:00]} 3. Nc3 {[%emt 0:00:00]} Qd8 {[%emt 0:00:00]} 4. Nf3 {[%emt 0:00:00]} Nf6 {[%emt 0:00:00]} 5. d4 {[%emt 0:00:30]} Bg4 {[%emt 0:01:00]} 6. Be2 {[%emt 0:00:30]} e6 {[%emt 0:00:30]} 7. a3 {[%emt 0:01:30]} c6 {[%emt 0:01:30]} 8. Be3 {[%emt 0:01:30]} Bd6 {[%emt 0:01:30]} 9. Qd2 {[%emt 0:02:30]} Qc7 {[%emt 0:01:30]} 10. h3 {[%emt 0:03:30]} Bxf3 {[%emt 0:02:30]} 11. Bxf3 {[%emt 0:00:30]} Nbd7 {[%emt 0:00:30]} 12. Ne4 {[%emt 0:03:30]} Nxe4 {[%emt 0:00:30]} 13. Bxe4 {[%emt 0:00:30]} f5 {[%emt 0:00:30]} 14. Bd3 {[%emt 0:01:30]} f4 {[%emt 0:00:30]} 15. Qe2 {[%emt 0:00:00]} fxe3 {[%emt 0:02:30]} 16. Qh5+ {[%emt 0:00:00]} Kd8 {[%emt 0:01:30]} 17. Qg5+ {[%emt 0:01:30]} Nf6 {[%emt 0:00:30]} 18. fxe3 {[%emt 0:00:30]} h6 {[%emt 0:02:30]} 19. Qg6 {[%emt 0:00:30]} Qa5+ {[%emt 0:00:00]} 20. c3 {[%emt 0:01:30]} Qg5 {[%emt 0:00:00]} 21. Qxg5 {[%emt 0:01:30]} hxg5 {[%emt 0:00:30]} 22. O-O-O {[%emt 0:00:30]} Kc7 {[%emt 0:00:30]} 23. c4 {[%emt 0:01:30]} g4 {[%emt 0:03:30]} 24. hxg4 {[%emt 0:01:30]} Nxg4 {[%emt 0:00:00]} 25. c5 {[%emt 0:02:30]} Bg3 {[%emt 0:01:00]} 26. Rxh8 {[%emt 0:23:30]} Rxh8 {[%emt 0:00:30]} 27. Rf1 {[%emt 0:00:30]} Bf2 {[%emt 0:04:30]} 28. Kb1 {[%emt 0:00:30]} Rf8 {[%emt 0:00:30]} 29. e4 {[%emt 0:01:30]} Ne3 {[%emt 0:00:30]} 30. Rh1 {[%emt 0:01:30]} Nxg2 {[%emt 0:00:30]} 31. Rd1 {[%emt 0:00:30]} Bxd4 {[%emt 0:01:30]} 32. b4 {[%emt 0:00:30]} Rf2 {[%emt 0:01:30]} 33. Bc4 {[%emt 0:01:30]} e5 {[%emt 0:00:30]} 34. Rd3 {[%emt 0:03:30]} Ne3 {[%emt 0:00:00]} 35. Be6 {[%emt 0:00:30]} Rf1+ {[%emt 0:01:00]} 36. Ka2 {[%emt 0:00:30]} Ra1+ {[%emt 0:01:30]} 37. Kb3 {[%emt 0:00:30]} Rd1 {[%emt 0:01:30]} 38. Rxd1 {[%emt 0:00:30]} Nxd1 {[%emt 0:00:00]} 39. Kc2 {[%emt 0:00:30]} Nf2 {[%emt 0:00:00]} 40. Bf5 {[%emt 0:00:30]} Kd8 {[%emt 0:00:30]} 41. Kd2 {[%emt 0:00:30]} Ke7 {[%emt 0:00:30]} 42. a4 {[%emt 0:00:30]} Kf6 {[%emt 0:00:30]} 43. Bc8 {[%emt 0:00:30]} b6 {[%emt 0:00:30]} 44. cxb6 {[%emt 0:00:30]} axb6 {[%emt 0:00:00]} 45. Bb7 {[%emt 0:00:30]} c5 {[%emt 0:02:00]} 46. bxc5 {[%emt 0:00:30]} Bxc5 {[%emt 0:00:30]} 47. Ke2 {[%emt 0:00:30]} g5 {[%emt 0:00:30]} 48. Kf1 {[%emt 0:01:30]} g4 {[%emt 0:00:00]} 49. Kg2 {[%emt 0:00:00]} Kg5 {[%emt 0:01:00]} 50. Kg3 {[%emt 0:00:00]} Nd3 {[%emt 0:00:00]} 51. Ba6 {[%emt 0:01:30]} Nb2 {[%emt 0:00:00]} 52. Bc8 {[%emt 0:00:30]} Nxa4 {[%emt 0:01:30]} 53. Bxg4 {[%emt 0:00:30]} Nc3 {[%emt 0:00:00]} 54. Bf5 {[%emt 0:02:30]} Ne2+ {[%emt 0:01:00]} 55. Kg2 {[%emt 0:00:30]} Kf4 {[%emt 0:00:00]} 56. Bh7 {[%emt 0:02:30]} Nc3 {[%emt 0:00:00]} 57. Bf5 {[%emt 0:00:30]} Nxe4 {[%emt 0:00:30]} 58. Bxe4 {[%emt 0:00:30]} Kxe4 {[%emt 0:00:00]} 59. Kf1 {[%emt 0:00:30]} b5 {[%emt 0:00:00]} 60. Ke2 {[%emt 0:00:00]} b4 {[%emt 0:00:00]} 0-1

[Event "Turkish Club Cup 2019"]
[Site "Konya"]
[Date "2019.07.16"]
[Round "1"]
[White "Aslan, Elif Cagil"]
[Black "Turkoglu, Sila Eylul"]
[Result "1/2-1/2"]
[ECO "C10"]
[WhiteElo "1102"]
[BlackElo "1201"]
[Annotator "NA"]
[PlyCount "137"]
[EventDate "2019.07.16"]
[EventType "team-tourn"]
[EventCountry "TUR"]
[SourceTitle "playchess.com"]
[Source "ChessBase"]
[SourceQuality "1"]
[TimeControl "5400+30"]

1. e4 {[%emt 0:00:30]} e6 {[%emt 0:00:30]} 2. d4 {[%emt 0:00:30]} d5 {[%emt 0:00:30]} 3. Nd2 {[%emt 0:00:30]} dxe4 {[%emt 0:00:00]} 4. Nxe4 {[%emt 0:00:00]} Nd7 {[%emt 0:00:00]} 5. Nf3 {[%emt 0:00:00]} Ngf6 {[%emt 0:00:00]} 6. Nxf6+ {[%emt 0:00:00]} Nxf6 {[%emt 0:00:00]} 7. g3 {[%emt 0:00:00]} b6 {[%emt 0:00:30]} 8. Bb5+ {[%emt 0:00:30]} Bd7 {[%emt 0:01:30]} 9. a4 {[%emt 0:00:30]} a6 {[%emt 0:03:30]} 10. Be2 {[%emt 0:00:00]} Bc6 {[%emt 0:00:30]} 11. O-O {[%emt 0:02:00]} Bd6 {[%emt 0:03:30]} 12. Bd2 {[%emt 0:05:30]} O-O {[%emt 0:01:30]} 13. c4 {[%emt 0:03:30]} a5 {[%emt 0:15:30]} 14. Bd3 {[%emt 0:06:30]} Bb7 {[%emt 0:10:30]} 15. Bc3 {[%emt 0:06:30]} Ne4 {[%emt 0:06:30]} 16. Bxe4 {[%emt 0:13:30]} Bxe4 {[%emt 0:00:00]} 17. d5 {[%emt 0:02:30]} exd5 {[%emt 0:01:00]} 18. Qd4 {[%emt 0:06:30]} Qf6 {[%emt 0:00:30]} 19. Qxe4 {[%emt 0:11:30]} dxe4 {[%emt 0:23:30]} 20. Bxf6 {[%emt 0:00:00]} exf3 {[%emt 0:10:50]} 21. Bc3 {[%emt 0:01:00]} Rfe8 {[%emt 0:00:10]} 22. Rfe1 {[%emt 0:00:30]} f5 {[%emt 0:02:12]} 23. Re3 {[%emt 0:03:30]} Rxe3 {[%emt 0:01:20]} 24. fxe3 {[%emt 0:00:00]} g5 {[%emt 0:00:39]} 25. Kf2 {[%emt 0:00:00]} g4 {[%emt 0:00:10]} 26. h3 {[%emt 0:02:30]} h5 {[%emt 0:01:56]} 27. hxg4 {[%emt 0:00:30]} hxg4 {[%emt 0:00:31]} 28. Rh1 {[%emt 0:01:30]} Rf8 {[%emt 0:01:58]} 29. Re1 {[%emt 0:02:30]} Re8 {[%emt 0:02:32]} 30. Rh1 {[%emt 0:01:30]} Be5 {[%emt 0:10:54]} 31. Bxe5 {[%emt 0:01:30]} Rxe5 {[%emt 0:00:01]} 32. Rd1 {[%emt 0:00:30]} Re7 {[%emt 0:00:41]} 33. Rd5 {[%emt 0:00:30]} Rf7 {[%emt 0:00:21]} 34. c5 {[%emt 0:00:30]} Kg7 {[%emt 0:00:23]} 35. cxb6 {[%emt 0:01:30]} cxb6 {[%emt 0:00:21]} 36. Rb5 {[%emt 0:00:30]} Rf6 {[%emt 0:00:42]} 37. Rd5 {[%emt 0:01:30]} Kf7 {[%emt 0:00:15]} 38. Re5 {[%emt 0:01:30]} Kg6 {[%emt 0:01:57]} 39. Rd5 {[%emt 0:02:30]} Rc6 {[%emt 0:00:15]} 40. Rd2 {[%emt 0:01:30]} Kf6 {[%emt 0:00:11]} 41. b3 {[%emt 0:00:30]} Ke6 {[%emt 0:00:58]} 42. Rb2 {[%emt 0:01:30]} Kd5 {[%emt 0:01:18]} 43. Rd2+ {[%emt 0:00:00]} Kc5 {[%emt 0:00:23]} 44. Rc2+ {[%emt 0:00:00]} Kd5 {[%emt 0:00:30]} 45. Rd2+ {[%emt 0:00:30]} Ke6 {[%emt 0:00:02]} 46. Rb2 {[%emt 0:00:00]} Kd7 {[%emt 0:00:00]} 47. Rd2+ {[%emt 0:00:00]} Kc7 {[%emt 0:00:06]} 48. Rb2 {[%emt 0:00:30]} Rc3 {[%emt 0:00:17]} 49. b4 {[%emt 0:00:30]} axb4 {[%emt 0:00:50]} 50. Rxb4 {[%emt 0:00:30]} Kc6 {[%emt 0:00:09]} 51. Rb2 {[%emt 0:00:30]} Rc5 {[%emt 0:00:54]} 52. Rd2 {[%emt 0:00:30]} Rc4 {[%emt 0:00:29]} 53. Ra2 {[%emt 0:00:00]} Rc5 {[%emt 0:00:46]} 54. Rd2 {[%emt 0:00:00]} Kb7 {[%emt 0:00:00]} 55. Rd7+ {[%emt 0:00:30]} Ka6 {[%emt 0:00:00]} 56. Rd2 {[%emt 0:00:30]} Ka5 {[%emt 0:00:00]} 57. Rb2 {[%emt 0:00:30]} Rd5 {[%emt 0:00:38]} 58. Ke1 {[%emt 0:00:30]} b5 {[%emt 0:02:59]} 59. axb5 {[%emt 0:00:30]} Rxb5 {[%emt 0:00:30]} 60. Rd2 {[%emt 0:00:30]} Re5 {[%emt 0:00:27]} 61. Kf2 {[%emt 0:00:30]} Kb4 {[%emt 0:00:14]} 62. Rd1 {[%emt 0:00:30]} Re8 {[%emt 0:00:46]} 63. Rd5 {[%emt 0:01:30]} Rf8 {[%emt 0:00:03]} 64. Rd2 {[%emt 0:00:30]} Kc5 {[%emt 0:00:53]} 65. Rd4 {[%emt 0:00:00]} Rf6 {[%emt 0:00:33]} 66. Rf4 {[%emt 0:00:00]} Kd6 {[%emt 0:00:45]} 67. e4 {[%emt 0:01:30]} Ke5 {[%emt 0:00:25]} 68. exf5 {[%emt 0:00:30]} Rxf5 {[%emt 0:00:18]} 69. Rxg4 {[%emt 0:00:30]} 1/2-1/2

[Event "Turkish Club Cup 2019"]
[Site "Konya"]
[Date "2019.07.16"]
[Round "1"]
[White "Karaca, Doruk"]
[Black "Vursan, Emre Can"]
[Result "1/2-1/2"]
[ECO "D07"]
[WhiteElo "1096"]
[BlackElo "1714"]
[Annotator "NA"]
[PlyCount "101"]
[EventDate "2019.07.16"]
[EventType "team-tourn"]
[EventCountry "TUR"]
[SourceTitle "playchess.com"]
[Source "ChessBase"]
[SourceQuality "1"]
[TimeControl "5400+30"]

1. d4 {[%emt 0:00:30]} d5 {[%emt 0:00:30]} 2. e3 {[%emt 0:00:00]} Nc6 {[%emt 0:00:30]} 3. Nf3 {[%emt 0:00:00]} Bg4 {[%emt 0:00:30]} 4. Be2 {[%emt 0:00:30]} e6 {[%emt 0:00:30]} 5. c4 {[%emt 0:02:30]} dxc4 {[%emt 0:09:30]} 6. Nc3 {[%emt 0:01:30]} Nf6 {[%emt 0:01:30]} 7. h3 {[%emt 0:01:30]} Bh5 {[%emt 0:00:30]} 8. Bd2 {[%emt 0:07:30]} Bb4 {[%emt 0:11:30]} 9. Rc1 {[%emt 0:07:30]} Bxc3 {[%emt 0:02:30]} 10. Rxc3 {[%emt 0:01:30]} O-O {[%emt 0:06:30]} 11. O-O {[%emt 0:01:30]} Ne7 {[%emt 0:13:30]} 12. Rxc4 {[%emt 0:00:30]} Ned5 {[%emt 0:05:30]} 13. Qb3 {[%emt 0:02:30]} Ne4 {[%emt 0:05:30]} 14. Bb4 {[%emt 0:01:30]} Re8 {[%emt 0:06:30]} 15. Rfc1 {[%emt 0:00:30]} a5 {[%emt 0:00:30]} 16. Be1 {[%emt 0:01:30]} Qe7 {[%emt 0:10:30]} 17. R4c2 {[%emt 0:10:30]} c6 {[%emt 0:06:00]} 18. a3 {[%emt 0:12:30]} a4 {[%emt 0:00:43]} 19. Qc4 {[%emt 0:01:30]} Nd6 {[%emt 0:01:12]} 20. Qa2 {[%emt 0:00:30]} Bg6 {[%emt 0:05:40]} 21. Rd2 {[%emt 0:01:30]} Be4 {[%emt 0:05:01]} 22. Rdd1 {[%emt 0:02:30]} Nb6 {[%emt 0:02:09]} 23. Bb4 {[%emt 0:01:30]} Nd5 {[%emt 0:02:34]} 24. Rd2 {[%emt 0:02:30]} Nxb4 {[%emt 0:00:46]} 25. axb4 {[%emt 0:00:30]} Bd5 {[%emt 0:01:18]} 26. Qb1 {[%emt 0:00:30]} Ne4 {[%emt 0:00:23]} 27. Rdd1 {[%emt 0:00:30]} Qxb4 {[%emt 0:00:27]} 28. Bd3 {[%emt 0:02:30]} Nf6 {[%emt 0:00:02]} 29. Ne5 {[%emt 0:02:30]} Qe7 {[%emt 0:01:13]} 30. Bc4 {[%emt 0:01:30]} Nd7 {[%emt 0:00:56]} 31. Bxd5 {[%emt 0:01:30]} exd5 {[%emt 0:00:05]} 32. Nxd7 {[%emt 0:00:30]} Qxd7 {[%emt 0:00:01]} 33. b3 {[%emt 0:00:00]} a3 {[%emt 0:00:30]} 34. Rd2 {[%emt 0:00:00]} Qe7 {[%emt 0:00:37]} 35. Rc5 {[%emt 0:00:30]} Ra6 {[%emt 0:00:48]} 36. Ra2 {[%emt 0:00:30]} Qe4 {[%emt 0:00:36]} 37. Qxe4 {[%emt 0:00:30]} Rxe4 {[%emt 0:00:13]} 38. Rc1 {[%emt 0:00:30]} Re8 {[%emt 0:00:44]} 39. Rca1 {[%emt 0:00:30]} Rea8 {[%emt 0:00:09]} 40. Kf1 {[%emt 0:00:30]} Kf8 {[%emt 0:00:24]} 41. Ke2 {[%emt 0:00:30]} Ke7 {[%emt 0:00:00]} 42. Kd3 {[%emt 0:00:00]} Kd6 {[%emt 0:00:00]} 43. b4 {[%emt 0:00:00]} Kc7 {[%emt 0:01:31]} 44. Kc3 {[%emt 0:01:30]} Kb6 {[%emt 0:00:02]} 45. Kb3 {[%emt 0:00:30]} Kb5 {[%emt 0:00:04]} 46. Rc1 {[%emt 0:01:30]} b6 {[%emt 0:00:54]} 47. Rb1 {[%emt 0:00:00]} Ra4 {[%emt 0:00:56]} 48. Kc3 {[%emt 0:01:00]} f5 {[%emt 0:00:08]} 49. Rb3 {[%emt 0:01:30]} g5 {[%emt 0:00:33]} 50. f3 {[%emt 0:00:30]} Re8 {[%emt 0:00:26]} 51. Kd2 {[%emt 0:01:30]} 1/2-1/2

[Event "Turkish Club Cup 2019"]
[Site "Konya"]
[Date "2019.07.16"]
[Round "1"]
[White "Tasdelen, Asuman Betul"]
[Black "Yalcin, Nehir"]
[Result "1/2-1/2"]
[ECO "A05"]
[WhiteElo "1050"]
[BlackElo "1392"]
[Annotator "NA"]
[PlyCount "116"]
[EventDate "2019.07.16"]
[EventType "team-tourn"]
[EventCountry "TUR"]
[SourceTitle "playchess.com"]
[Source "ChessBase"]
[SourceQuality "1"]
[TimeControl "5400+30"]

1. Nf3 {[%emt 0:00:30]} Nf6 {[%emt 0:00:30]} 2. g3 {[%emt 0:00:00]} g6 {[%emt 0:00:00]} 3. Bg2 {[%emt 0:00:00]} d6 {[%emt 0:00:00]} 4. O-O {[%emt 0:00:00]} Bg7 {[%emt 0:00:30]} 5. d3 {[%emt 0:00:00]} Nbd7 {[%emt 0:01:30]} 6. e4 {[%emt 0:00:30]} O-O {[%emt 0:00:30]} 7. Nbd2 {[%emt 0:00:30]} c5 {[%emt 0:00:30]} 8. b3 {[%emt 0:00:30]} Nxe4 {[%emt 0:03:30]} 9. Nxe4 {[%emt 0:00:00]} Bxa1 {[%emt 0:00:30]} 10. c3 {[%emt 0:12:00]} d5 {[%emt 0:04:30]} 11. Nxc5 {[%emt 0:12:30]} Nxc5 {[%emt 0:01:30]} 12. Be3 {[%emt 0:00:30]} Bxc3 {[%emt 0:00:30]} 13. Bxc5 {[%emt 0:00:30]} Bg7 {[%emt 0:00:30]} 14. Re1 {[%emt 0:00:30]} Re8 {[%emt 0:03:30]} 15. Bd4 {[%emt 0:02:30]} Bg4 {[%emt 0:02:30]} 16. Bxg7 {[%emt 0:01:30]} Kxg7 {[%emt 0:04:30]} 17. Qa1+ {[%emt 0:00:30]} Kg8 {[%emt 0:00:00]} 18. Ne5 {[%emt 0:01:30]} Bf5 {[%emt 0:01:00]} 19. Rd1 {[%emt 0:00:30]} Qd6 {[%emt 0:02:30]} 20. Qd4 {[%emt 0:04:30]} Red8 {[%emt 0:02:30]} 21. Bf3 {[%emt 0:01:30]} a6 {[%emt 0:02:30]} 22. Bg4 {[%emt 0:01:30]} Qf6 {[%emt 0:03:30]} 23. Bxf5 {[%emt 0:01:30]} Qxf5 {[%emt 0:01:30]} 24. Ng4 {[%emt 0:01:30]} Qh5 {[%emt 0:00:30]} 25. Re1 {[%emt 0:00:30]} Rac8 {[%emt 0:11:30]} 26. h4 {[%emt 0:01:30]} Rc7 {[%emt 0:17:30]} 27. Rxe7 {[%emt 0:02:30]} Qxg4 {[%emt 0:00:30]} 28. Qxg4 {[%emt 0:02:30]} Rxe7 {[%emt 0:00:00]} 29. Qg5 {[%emt 0:00:30]} Rdd7 {[%emt 0:00:00]} 30. h5 {[%emt 0:01:30]} Re6 {[%emt 0:02:30]} 31. h6 {[%emt 0:01:30]} f6 {[%emt 0:00:30]} 32. Qc1 {[%emt 0:00:30]} Rc6 {[%emt 0:00:30]} 33. Qe3 {[%emt 0:00:30]} Kf7 {[%emt 0:00:30]} 34. Qf4 {[%emt 0:02:30]} d4 {[%emt 0:04:30]} 35. Qb8 {[%emt 0:01:30]} Rcc7 {[%emt 0:01:30]} 36. Qh8 {[%emt 0:00:30]} Ke6 {[%emt 0:00:30]} 37. Qe8+ {[%emt 0:00:30]} Re7 {[%emt 0:01:30]} 38. Qg8+ {[%emt 0:00:30]} Kd6 {[%emt 0:01:30]} 39. Qd8+ {[%emt 0:00:30]} Kc5 {[%emt 0:00:30]} 40. Qf8 {[%emt 0:01:30]} f5 {[%emt 0:01:30]} 41. Qf6 {[%emt 0:00:30]} Red7 {[%emt 0:00:30]} 42. Qf8+ {[%emt 0:00:30]} Kb6 {[%emt 0:00:30]} 43. Qf6+ {[%emt 0:01:30]} Ka7 {[%emt 0:00:30]} 44. Qe5 {[%emt 0:00:30]} Rc3 {[%emt 0:00:30]} 45. Qe2 {[%emt 0:06:30]} Rcc7 {[%emt 0:01:30]} 46. g4 {[%emt 0:00:30]} fxg4 {[%emt 0:02:30]} 47. Qxg4 {[%emt 0:00:30]} Rd5 {[%emt 0:00:30]} 48. Qe4 {[%emt 0:00:30]} Rcd7 {[%emt 0:00:30]} 49. Kf1 {[%emt 0:01:30]} Rh5 {[%emt 0:01:30]} 50. Qe6 {[%emt 0:00:30]} Rhd5 {[%emt 0:00:30]} 51. Qe4 {[%emt 0:01:30]} Rc5 {[%emt 0:01:30]} 52. Qe6 {[%emt 0:00:30]} Rcc7 {[%emt 0:00:00]} 53. Qe4 {[%emt 0:01:30]} Rc6 {[%emt 0:02:14]} 54. Qe8 {[%emt 0:00:30]} Rcd6 {[%emt 0:00:22]} 55. Qe2 {[%emt 0:00:30]} Rf6 {[%emt 0:00:27]} 56. Qe5 {[%emt 0:01:30]} Rf5 {[%emt 0:00:27]} 57. Qe4 {[%emt 0:00:30]} Ra5 {[%emt 0:01:20]} 58. Qe6 {[%emt 0:00:30]} Rad5 {[%emt 0:00:31]} 1/2-1/2

[Event "Turkish Club Cup 2019"]
[Site "Konya"]
[Date "2019.07.17"]
[Round "2"]
[White "Cetinkaya, Vedat Ali"]
[Black "Kara, Ibrahim Afsin"]
[Result "1-0"]
[ECO "B00"]
[WhiteElo "2074"]
[BlackElo "1900"]
[Annotator "NA"]
[PlyCount "61"]
[EventDate "2019.07.16"]
[EventType "team-tourn"]
[EventCountry "TUR"]
[SourceTitle "playchess.com"]
[Source "ChessBase"]
[SourceQuality "1"]
[TimeControl "5400+30"]

1. d4 {[%emt 0:00:30]} b6 {[%emt 0:00:30]} 2. e4 {[%emt 0:00:30]} Bb7 {[%emt 0:00:30]} 3. Bd3 {[%emt 0:00:30]} e6 {[%emt 0:00:30]} 4. Nf3 {[%emt 0:01:30]} d6 {[%emt 0:01:30]} 5. Qe2 {[%emt 0:01:30]} (5. O-O Nd7 6. Re1 g6 7. Nbd2 Bg7 8. c3 a6 9. Nf1 e5 10. h3 Ngf6 11. Ng3 O-O 12. Bg5 h6 13. Be3 Re8 14. Qc2 Qe7 {½-½ (14) Alekseev,E (2620)-Kamsky,G (2675) St Petersburg 2018}) 5... Nd7 {[%emt 0:00:30]} 6. Bf4 {[%emt 0:02:30] B00: Queen's Fianchetto Defence, Nimzowitsch Defence} Ne7 $146 {[%emt 0:02:30]} ({Predecessor:} 6... a6 7. Nbd2 Ne7 8. Bg3 g6 9. c3 Bg7 10. h4 h6 11. Bc2 Qb8 12. Bf4 Qa7 {0-1 (42) Bernasek,J (2446)-Blatny,P (2483) Brno 2006}) 7. Bg5 {[%emt 0:03:30]} c6 {[%emt 0:05:30]} 8. Nbd2 {[%emt 0:03:30]} Qc7 {[%emt 0:02:30]} 9. Bh4 {[%emt 0:05:30]} f6 {[%emt 0:02:30]} 10. g4 {[%emt 0:06:30]} e5 {[%emt 0:10:30]} 11. g5 {[%emt 0:01:30]} Ng6 {[%emt 0:02:30]} 12. Bg3 {[%emt 0:03:30]} O-O-O {[%emt 0:01:30]} 13. O-O-O {[%emt 0:03:30]} Re8 {[%emt 0:01:30]} 14. h4 {[%emt 0:01:30]} h5 {[%emt 0:10:30]} 15. Bc4 {[%emt 0:07:30]} d5 {[%emt 0:07:30]} 16. exd5 {[%emt 0:02:30]} cxd5 {[%emt 0:00:30]} 17. Bd3 {[%emt 0:00:30]} Nf4 {[%emt 0:05:30]} 18. Bxf4 {[%emt 0:00:30]} Bd6 {[%emt 0:00:30]} 19. Bg6 {[%emt 0:01:30]} Re7 {[%emt 0:01:30]} 20. Be3 {[%emt 0:01:30]} Kb8 {[%emt 0:06:30]} 21. Bf5 {[%emt 0:03:30]} Rc8 {[%emt 0:04:30]} 22. Nb3 $18 {[%emt 0:02:30]} Ba6 {[%emt 0:01:30]} 23. Qxa6 {[%emt 0:02:30]} g6 {[%emt 0:03:30]} 24. Bxg6 {[%emt 0:00:30]} f5 {[%emt 0:01:30]} 25. Ne1 {[%emt 0:01:30]} Bb4 {[%emt 0:06:30]} 26. Bxf5 {[%emt 0:02:30]} e4 {[%emt 0:01:03]} 27. Bd2 {[%emt 0:00:30]} Bxd2+ {[%emt 0:04:55]} 28. Rxd2 {[%emt 0:00:30]} Qf4 {[%emt 0:00:24]} 29. Bxd7 {[%emt 0:00:30]} Rxd7 {[%emt 0:00:07]} 30. Qb5 {[%emt 0:00:30]} Qf5 {[%emt 0:01:24]} 31. Ng2 {[%emt 0:01:30]} 1-0

[Event "Turkish Club Cup 2019"]
[Site "Konya"]
[Date "2019.07.17"]
[Round "2"]
[White "Gulsoy, Mustafa Alpago"]
[Black "Demirbas, Fatih"]
[Result "1-0"]
[ECO "B07"]
[WhiteElo "2069"]
[BlackElo "1742"]
[Annotator "NA"]
[PlyCount "115"]
[EventDate "2019.07.16"]
[EventType "team-tourn"]
[EventCountry "TUR"]
[SourceTitle "playchess.com"]
[Source "ChessBase"]
[SourceQuality "1"]
[TimeControl "5400+30"]

1. e4 {[%emt 0:00:30]} d6 {[%emt 0:00:30]} 2. d4 {[%emt 0:00:30]} Nf6 {[%emt 0:00:30]} 3. Nc3 {[%emt 0:00:30]} e5 {[%emt 0:00:00]} 4. dxe5 {[%emt 0:03:30]} dxe5 {[%emt 0:00:00]} 5. Qxd8+ {[%emt 0:00:30]} Kxd8 {[%emt 0:00:00]} 6. Bg5 {[%emt 0:00:30]} Be6 {[%emt 0:00:00]} 7. Nf3 {[%emt 0:00:30]} Nbd7 {[%emt 0:00:00]} 8. O-O-O {[%emt 0:00:30]} Kc8 {[%emt 0:00:00]} 9. a3 {[%emt 0:01:30] B07: Pirc Defence: Miscellaneous Systems} (9. Bh4 h6 10. Bxf6 gxf6 11. Nh4 c6 12. Kb1 Kc7 13. Ne2 Bc5 14. f3 Nf8 15. Ng3 Ng6 16. Ngf5 Rad8 17. Rxd8 Rxd8 {0-1 (29) Babarykin,S (2411)-Savchenko,B (2562) Moscow 2019}) 9... c6 {[%emt 0:01:30]} 10. Bh4 {[%emt 0:05:30]} Bc5 {[%emt 0:01:30]} 11. h3 {[%emt 0:03:30]} Nh5 $146 {[%emt 0:11:30]} ({Predecessor:} 11... b5 12. b4 Be7 13. Nb1 a5 14. c3 Bb3 15. Rd2 Re8 16. Bd3 Bf8 {1-0 (33) Udvardi,Z (1992)-Monus,Z (2030) Hungary 2016}) 12. Na4 {[%emt 0:06:30]} Bb6 $1 {[%emt 0:19:30]} 13. Nxb6+ {[%emt 0:05:30]} axb6 {[%emt 0:00:30]} 14. Ng5 {[%emt 0:01:30]} b5 {[%emt 0:07:30]} 15. Nxe6 {[%emt 0:03:30]} fxe6 {[%emt 0:00:00]} 16. Be2 {[%emt 0:06:30]} Nf4 {[%emt 0:04:00]} 17. Bg4 {[%emt 0:03:30]} h5 {[%emt 0:01:30]} 18. Bf3 {[%emt 0:00:00]} Nf6 {[%emt 0:04:30]} 19. g3 {[%emt 0:08:00]} Ng6 {[%emt 0:00:30]} 20. Bg5 {[%emt 0:03:30]} Kc7 {[%emt 0:02:30]} 21. Rd3 {[%emt 0:02:30]} Rad8 {[%emt 0:02:30]} 22. Rxd8 {[%emt 0:01:30]} Kxd8 {[%emt 0:00:30]} 23. Rd1+ {[%emt 0:00:30]} Kc7 {[%emt 0:00:00]} 24. Kd2 {[%emt 0:00:00]} Nf8 {[%emt 0:01:00]} 25. Ke3 {[%emt 0:01:00]} N8d7 {[%emt 0:00:00]} 26. Be2 {[%emt 0:00:30]} Ra8 {[%emt 0:11:00]} 27. Bxf6 $14 {[%emt 0:06:30]} ({White should play} 27. f4 $16) 27... Nxf6 {[%emt 0:00:30]} 28. f4 {[%emt 0:00:30]} g6 {[%emt 0:12:30]} 29. fxe5 {[%emt 0:02:30]} Nd7 {[%emt 0:00:30]} 30. c4 {[%emt 0:01:30]} bxc4 {[%emt 0:02:18]} 31. Bxc4 {[%emt 0:00:30]} Re8 {[%emt 0:00:00]} 32. Kf4 {[%emt 0:07:30]} Rf8+ {[%emt 0:11:03]} 33. Kg5 {[%emt 0:00:30]} Rf3 {[%emt 0:00:20]} 34. Rd3 {[%emt 0:00:30]} Rxd3 {[%emt 0:01:36]} 35. Bxd3 {[%emt 0:00:30]} Nxe5 {[%emt 0:00:30]} 36. Be2 {[%emt 0:00:00]} Kd6 {[%emt 0:00:00]} 37. Kf6 {[%emt 0:00:00]} c5 {[%emt 0:03:09]} 38. b3 {[%emt 0:00:00]} b6 {[%emt 0:01:48]} 39. a4 {[%emt 0:00:00]} Nd7+ {[%emt 0:02:08]} 40. Kxg6 {[%emt 0:00:30]} Ke5 {[%emt 0:00:02]} 41. Kxh5 {[%emt 0:01:30]} Nf6+ {[%emt 0:02:21]} 42. Kg6 {[%emt 0:00:30]} Nxe4 {[%emt 0:00:00]} 43. g4 {[%emt 0:00:30]} Kf4 {[%emt 0:00:52]} 44. h4 {[%emt 0:00:30]} Nc3 {[%emt 0:00:51]} 45. h5 {[%emt 0:01:30]} Nxe2 {[%emt 0:00:50]} 46. h6 {[%emt 0:00:30]} e5 {[%emt 0:00:28]} 47. h7 {[%emt 0:00:30]} Kxg4 {[%emt 0:00:30]} 48. h8=Q {[%emt 0:00:00]} Nf4+ {[%emt 0:00:08]} 49. Kf6 {[%emt 0:00:00]} e4 {[%emt 0:00:14]} 50. Qe8 {[%emt 0:00:30]} e3 {[%emt 0:00:40]} 51. Qc8+ {[%emt 0:01:30]} Kf3 {[%emt 0:00:38]} 52. Kg5 {[%emt 0:04:30]} Ng2 {[%emt 0:00:27]} 53. Qc6+ {[%emt 0:00:30]} Kf2 {[%emt 0:00:22]} 54. Kg4 {[%emt 0:01:30]} Ne1 {[%emt 0:00:21]} 55. Qxb6 {[%emt 0:00:30]} Nd3 {[%emt 0:00:50]} 56. Qd6 {[%emt 0:00:30]} e2 {[%emt 0:00:40]} 57. Qxd3 {[%emt 0:00:00]} e1=Q {[%emt 0:00:27]} 58. Qg3+ {[%emt 0:00:00]} 1-0